fUSD/lending_fUSD_20251228
["ID","MTS","AMOUNT","RATE_DAILY","PERIOD"]
[399940028,1766905842882,-659.86,0.00025096,2]
[399940029,1766905842892,-659.86,0.00025096,2]
[399940030,1766905842901,-659.86,0.00025096,2]
[399940031,1766905842911,-465.28,0.00025205,2]
[399940032,1766905842922,-465.28,0.00025205,2]
[399940033,1766905842933,-465.28,0.00025205,2]
[399940034,1766905842943,-465.28,0.00025205,2]
[399940036,1766905842953,-151.59,0.00025205,2]
[399940037,1766905842964,-465.28,0.00025205,2]
[399940038,1766905842975,-984.08,0.00025205,2]
[399940039,1766905842985,-659.86,0.00025479,2]
[399940040,1766905842997,-659.86,0.00025479,2]
[399940041,1766905843007,-659.86,0.00025479,2]
[399940043,1766905843018,-659.86,0.00025479,2]
[399940044,1766905843029,-659.86,0.00025479,2]
[399940045,1766905843040,-659.86,0.00025479,2]
[399940046,1766905843050,-659.86,0.00025479,2]
[399940047,1766905843061,-659.86,0.00025479,2]
[399940048,1766905843072,-659.86,0.00025479,2]
[399940049,1766905843083,-659.86,0.00025479,2]
[399940050,1766905843094,-659.86,0.00025479,2]
[399940051,1766905843106,-659.86,0.00025479,2]
[399940052,1766905843116,-659.86,0.00025479,2]
[399940053,1766905843128,-659.86,0.00025479,2]
[399940054,1766905843138,-659.86,0.00025479,2]
[399940055,1766905843149,-659.86,0.00025479,2]
[399940056,1766905843160,-659.86,0.00025479,2]
[399940057,1766905843171,-659.86,0.00025479,2]
[399940058,1766905843183,-659.86,0.00025479,2]
[399940059,1766905843193,-659.86,0.00025479,2]
[399940060,1766905843204,-659.86,0.00025479,2]
[399940061,1766905843214,-659.86,0.00025479,2]
[399940062,1766905843225,-659.86,0.00025479,2]
[399940063,1766905843236,-668.93,0.00025479,2]
[399940064,1766905843247,-659.86,0.00025479,2]
[399940065,1766905843258,-659.86,0.00025479,2]
[399940066,1766905843268,-659.86,0.00025479,2]
[399940067,1766905843279,-659.86,0.00025479,2]
[399940068,1766905843291,-659.86,0.00025479,2]
[399940069,1766905843301,-1000.0,0.00025494,7]
[399940070,1766905843312,-5527.0,0.000255,3]
[399940071,1766905843322,-1052.79976135,0.000257,2]
[399940072,1766905843333,-178.62,0.00025726,2]
[399940073,1766905843344,-178.62,0.00025726,2]
[399940074,1766905843355,-178.62,0.00025726,2]
[399940075,1766905843370,-178.62,0.00025726,2]
[399940076,1766905843380,-465.28,0.00025863,2]
[399940077,1766905843390,-465.28,0.00025863,2]
[399940078,1766905843402,-465.28,0.00025863,2]
[399940079,1766905843413,-357.1,0.00025863,2]
[399940080,1766905843424,-465.28,0.00025863,2]
[399940081,1766905843434,-178.62,0.00025863,2]
[399940082,1766905843444,-178.62,0.00025863,2]
[399940083,1766905843456,-178.62,0.00025863,2]
[399940084,1766905843466,-178.62,0.00025863,2]
[399940085,1766905843477,-178.62,0.00025863,2]
[399940086,1766905843488,-357.17,0.00025863,2]
[399940087,1766905843498,-178.62,0.00025863,2]
[399940088,1766905843509,-178.62,0.00025863,2]
[399940089,1766905843519,-178.62,0.00025863,2]
[399940090,1766905843530,-176.9,0.0002587,2]
[399940091,1766905843541,-2108.3,0.00025984,2]
[399940092,1766905843552,-173.2,0.00026,2]
[399940093,1766905843563,-5527.0,0.000261,5]
[399940094,1766905843574,-791.97,0.0002611,2]
[399940095,1766905843585,-1099.0,0.00026215,2]
[399940096,1766905843596,-235.88,0.00026235,2]
[399940097,1766905843606,-174.5,0.00026238,2]
[399940098,1766905843617,-223.56,0.00026244,30]
[399940099,1766905843627,-500.0,0.00026316,7]
[399940100,1766905843637,-176.9,0.00026388,2]
[399940101,1766905843647,-659.86,0.00026438,2]
[399940102,1766905843656,-287.92,0.00026438,2]
[399940103,1766905843666,-1100.0,0.0002659,7]
[399940104,1766905843676,-333.74,0.00026676,2]
[399940105,1766905843686,-929.62,0.00026685,2]
[399940106,1766905843696,-481.58,0.00027151,2]
[399940107,1766905843707,-481.58,0.00027151,2]
[399940108,1766905843719,-481.58,0.00027151,2]
[399940109,1766905843731,-481.58,0.00027151,2]
[399940110,1766905843741,-481.58,0.00027151,2]
[399940111,1766905843753,-481.58,0.00027151,2]
[399940112,1766905843765,-481.58,0.00027151,2]
[399940113,1766905843781,-161.49470213,0.00027369,2]
[399940114,1766905843792,-253.05763986,0.00027397,34]
[399940115,1766905843802,-500.0,0.00027397,20]
[399940116,1766905843813,-247.5,0.00027397,2]
[399940117,1766905843823,-361.026666,0.00027397,7]
[399940118,1766905843833,-361.026666,0.00027397,7]
[399940119,1766905843843,-361.026666,0.00027397,7]
[399940120,1766905843853,-361.026666,0.00027397,7]
[399940121,1766905843863,-361.026666,0.00027397,7]
[399940122,1766905843873,-361.026666,0.00027397,7]
[399940123,1766905843883,-1099.0,0.00027525,5]
[399940124,1766905843894,-481.58,0.00027534,2]
[399940125,1766905843905,-481.58,0.00027534,2]
[399940126,1766905843916,-481.58,0.00027534,2]
[399940127,1766905843926,-481.58,0.00027534,2]
[399940128,1766905843937,-481.58,0.00027534,2]
[399940129,1766905843947,-481.58,0.00027534,2]
[399940130,1766905843958,-481.58,0.00027534,2]
[399940131,1766905843969,-481.58,0.00027534,2]
[399940132,1766905843979,-481.58,0.00027534,2]
[399940133,1766905843990,-481.58,0.00027534,2]
[399940134,1766905844001,-481.58,0.00027534,2]
[399940135,1766905844011,-481.58,0.00027534,2]
[399940136,1766905844023,-481.58,0.00027534,2]
[399940137,1766905844033,-481.58,0.00027534,2]
[399940138,1766905844044,-481.58,0.00027534,2]
[399940139,1766905844054,-481.58,0.00027534,2]
[399940140,1766905844064,-481.58,0.00027534,2]
[399940141,1766905844075,-481.58,0.00027534,2]
[399940142,1766905844085,-4623.99,0.00027671,2]
[399940143,1766905844095,-1000.0,0.00027686,14]
[399940144,1766905844107,-2108.3,0.00027844,2]
[399940145,1766905844117,-172.16495324,0.000279,2]
[399940146,1766905844129,-981.18213957,0.000279,2]
[399940147,1766905844140,-935.67871466,0.000279,2]
[399940148,1766905844153,-962.89,0.00028164,2]
[399940149,1766905844163,-152.35148617,0.00028296,2]
[399940150,1766905844174,-174.52,0.00028406,2]
[399940151,1766905844184,-481.58,0.00028493,2]
[399940152,1766905844195,-481.58,0.00028493,2]
[399940153,1766905844206,-481.58,0.00028493,2]
[399940154,1766905844218,-481.58,0.00028493,2]
[399940155,1766905844231,-481.58,0.00028493,2]
[399940156,1766905844243,-481.58,0.00028493,2]
[399940157,1766905844256,-481.58,0.00028493,2]
[399940158,1766905844267,-481.58,0.00028493,2]
[399940159,1766905844277,-481.58,0.00028493,2]
[399940160,1766905844288,-481.58,0.00028493,2]
[399940161,1766905844299,-481.58,0.00028493,2]
[399940162,1766905844310,-476.64,0.00028493,2]
[399940163,1766905844321,-500.0,0.00028508,14]
[399940164,1766905844331,-308.54,0.000287,7]
[399940165,1766905844342,-1100.0,0.00028782,14]
[399940166,1766905844352,-1099.0,0.00028901,5]
[399940167,1766905844366,-174.82979269,0.00029073,7]
[399940168,1766905844376,-210.35028844,0.00029137,7]
[399940169,1766905844387,-420.70057688,0.00029168,7]
[399940170,1766905844398,-1000.0,0.0002933,14]
[399940171,1766905844409,-210.35028842,0.000295,7]
[399940172,1766905844419,-2108.3,0.00029703,2]
[399940173,1766905844432,-210.35028843,0.00029873,7]
[399940174,1766905844443,-151.0,0.00029997,7]
[399940175,1766905844454,-7482.04114283,0.0003,2]
[399940176,1766905844464,-118264.25207414,0.0003,3]
[399940177,1766905844489,-373237.26526274,0.0003,3]
[399940178,1766905844501,-56651.47195505,0.0003,3]
[399940179,1766905844513,-8894.3368452,0.0003,3]
[399940182,1766905845119,-178.55,0.00017507,2]
[399940183,1766905845135,-180.31509555,0.00021856,2]
[399940184,1766905845155,-524.73447441,0.00025479,2]
[399940185,1766905845173,-135.12552559,0.00025479,2]
[399940186,1766905845185,-361.026666,0.00027397,7]
[399940187,1766905845201,-361.026666,0.00027397,7]
[399940188,1766905845214,-195.11535363,0.00027534,2]
[399940192,1766905847017,-180.31509555,0.00023465,2]
[399940193,1766905847028,-286.46464637,0.00027534,2]
[399940194,1766905847038,-567.52316975,0.0003,3]
[399940195,1766905847086,-759.48108643,0.0003,3]
[399940196,1766905847155,-2469.02239873,0.0003,3]
[399940197,1766905847225,-628.28861067,0.0003,3]
[399940199,1766905847238,-23099.19524539,0.0003,3]
[399940214,1766906326027,334.38,7.864e-05,2]
[399940215,1766906326226,334.38,8.277e-05,2]
[399940216,1766906326951,334.38,8.691e-05,2]
[399940217,1766906326994,334.38,9.105e-05,2]
[399940218,1766906327036,334.38,9.519e-05,2]
[399940219,1766906327200,334.38,9.933e-05,2]
[399940220,1766906327397,334.38,0.00010347,2]
[399940221,1766906327581,334.38,0.00010761,2]
[399940222,1766906327985,334.38,0.00011174,2]
[399940223,1766906328182,334.38,0.00011588,2]
[399940224,1766906328599,334.38,0.00012002,2]
[399940225,1766906328800,334.38,0.00012416,2]
[399940226,1766906328986,334.38,0.0001283,2]
[399940227,1766906329173,334.38,0.00013244,2]
[399940290,1766906945149,3530.28063036,0.00030136,120]
[399940314,1766907032243,-334.38,0.00013658,2]
[399940315,1766907032255,-334.38,0.00014071,2]
[399940316,1766907032265,-163.57893487,0.00014485,2]
[399940317,1766907032276,-170.80106513,0.00014485,2]
[399940318,1766907032287,-143.78198325,0.00014782,2]
[399940319,1766907032299,-1196.86375132,0.00014782,2]
[399940320,1766907032310,-871.0,0.00014782,2]
[399940321,1766907032417,-511.86844531,0.00014782,2]
[399940322,1766907032481,-516.48582012,0.00014782,2]
[399940323,1766907032491,-175.54,0.00014784,2]
[399940324,1766907032500,-249.83288639,0.00014899,2]
[399940325,1766907032511,-84.54711361,0.00014899,2]
[399940326,1766907032520,-300.0,0.00014972,2]
[399940327,1766907032535,-989.77801493,0.00014972,2]
[399940329,1766907032547,-116.22198507,0.00014972,2]
[399940331,1766907032556,-500.0,0.00014973,2]
[399940333,1766907032565,-500.48244711,0.00014973,2]
[399940335,1766907032574,-501.3700577,0.00014973,2]
[399940336,1766907032584,-343.7108255,0.00014973,2]
[399940337,1766907038225,-156.63631246,0.00014684,2]
[399940338,1766907038235,-156.2891745,0.00014973,2]
[399940339,1766907038245,-1200.0,0.0001502,2]
[399940340,1766907038255,-166.66,0.00015125,2]
[399940341,1766907038264,-347.29354191,0.00015213,2]
[399940342,1766907038274,-808.57346744,0.00015298,2]
[399940343,1766907038289,-12965.44379314,0.00015298,2]
[399940344,1766907038300,-694.46353124,0.00015298,2]
[399940345,1766907038311,-2816.86303894,0.00015298,2]
[399940381,1766907040555,-899386.24257982,0.00015298,2]
[399940403,1766907044221,-253.88923684,0.00015298,2]
[399940404,1766907044236,-507.53692009,0.00015298,2]
[399940451,1766907274383,205.42164234,0.00013699,3]
[399940452,1766907276178,3243.87353647,0.00013699,3]
[399940459,1766907445784,423.13,0.00030136,120]
[399940511,1766908231293,-367.05,0.00013699,2]
[399940512,1766908231304,-300.0,0.00013699,2]
[399940514,1766908231314,-195.0,0.00013699,2]
[399940516,1766908231324,-300.0,0.00014038,2]
[399940517,1766908231335,-195.0,0.00014354,2]
[399940518,1766908231344,-254.234831,0.00014653,2]
[399940519,1766908231353,-159.40048073,0.00014716,2]
[399940520,1766908231363,-159.40048073,0.00014726,2]
[399940521,1766908231372,-3292.17707818,0.00014726,2]
[399940522,1766908231382,-1000.0,0.00014727,2]
[399940523,1766908231392,-1000.0,0.00014816,2]
[399940524,1766908231402,-150.0,0.00014816,2]
[399940525,1766908231411,-300.0,0.00014816,2]
[399940526,1766908231421,-1200.0,0.00014816,2]
[399940527,1766908231430,-163.0,0.00014816,2]
[399940528,1766908231440,-59881.49823535,0.00014817,2]
[399940529,1766908231451,-182.53253337,0.00014826,2]
[399940530,1766908231462,-303.34821534,0.00014826,2]
[399940531,1766908231471,-500.0,0.00014826,2]
[399940532,1766908231481,-500.0,0.00014826,2]
[399940533,1766908231501,-501.60066048,0.00014826,2]
[399940534,1766908231511,-500.0,0.00014826,2]
[399940535,1766908231521,-500.0,0.00014826,2]
[399940536,1766908231531,-374.82968442,0.00014826,2]
[399940537,1766908231543,-500.0,0.00014826,2]
[399940538,1766908231553,-500.0,0.00014826,2]
[399940540,1766908231562,-500.0,0.00014826,2]
[399940542,1766908231571,-500.0,0.00014826,2]
[399940544,1766908231581,-500.0,0.00014826,2]
[399940546,1766908231590,-500.0,0.00014826,2]
[399940548,1766908231599,-500.0,0.00014826,2]
[399940549,1766908231608,-500.0,0.00014826,2]
[399940550,1766908231618,-500.0,0.00014826,2]
[399940551,1766908231627,-500.0,0.00014826,2]
[399940552,1766908231636,-349.60138,0.00014826,2]
[399940553,1766908231648,-500.0,0.00014826,2]
[399940555,1766908231657,-855.68627514,0.00014826,2]
[399940557,1766908231666,-855.68627514,0.00014826,2]
[399940559,1766908231675,-855.68627514,0.00014826,2]
[399940561,1766908231686,-855.68627514,0.00014826,2]
[399940563,1766908231695,-855.68627514,0.00014826,2]
[399940564,1766908231705,-855.68627514,0.00014826,2]
[399940565,1766908231714,-855.68627514,0.00014826,2]
[399940566,1766908231723,-855.68627514,0.00014826,2]
[399940567,1766908231732,-855.68627514,0.00014826,2]
[399940568,1766908231742,-855.68627514,0.00014826,2]
[399940569,1766908231751,-855.68627514,0.00014826,2]
[399940570,1766908231763,-855.68627514,0.00014826,2]
[399940571,1766908231773,-855.68627514,0.00014826,2]
[399940572,1766908231783,-855.68627514,0.00014826,2]
[399940573,1766908231793,-855.68627514,0.00014826,2]
[399940574,1766908231802,-855.68627514,0.00014826,2]
[399940575,1766908231811,-855.68627514,0.00014826,2]
[399940576,1766908231822,-855.68627514,0.00014826,2]
[399940577,1766908231835,-855.68627514,0.00014826,2]
[399940578,1766908231845,-855.68627514,0.00014826,2]
[399940579,1766908231855,-855.68627514,0.00014826,2]
[399940580,1766908231865,-855.68627514,0.00014826,2]
[399940581,1766908231874,-855.68627514,0.00014826,2]
[399940582,1766908231886,-855.68627514,0.00014826,2]
[399940583,1766908231897,-855.68627514,0.00014826,2]
[399940584,1766908231907,-855.68627514,0.00014826,2]
[399940585,1766908231917,-855.68627514,0.00014826,2]
[399940586,1766908231928,-855.68627514,0.00014826,2]
[399940587,1766908231938,-855.68627514,0.00014826,2]
[399940588,1766908231948,-855.68627514,0.00014826,2]
[399940589,1766908231959,-855.68627514,0.00014826,2]
[399940590,1766908231968,-855.68627514,0.00014826,2]
[399940591,1766908231978,-855.68627514,0.00014826,2]
[399940592,1766908231988,-855.68627514,0.00014826,2]
[399940593,1766908231997,-855.68627514,0.00014826,2]
[399940594,1766908232007,-855.68627514,0.00014826,2]
[399940595,1766908232016,-855.68627514,0.00014826,2]
[399940596,1766908232025,-855.68627514,0.00014826,2]
[399940597,1766908232035,-855.68627514,0.00014826,2]
[399940598,1766908232045,-855.68627514,0.00014826,2]
[399940599,1766908232055,-855.68627514,0.00014826,2]
[399940600,1766908232064,-855.68627514,0.00014826,2]
[399940601,1766908232073,-855.68627514,0.00014826,2]
[399940602,1766908232082,-855.68627514,0.00014826,2]
[399940603,1766908232091,-855.68627514,0.00014826,2]
[399940604,1766908232100,-855.68627514,0.00014826,2]
[399940605,1766908232109,-855.68627514,0.00014826,2]
[399940606,1766908232118,-855.68627514,0.00014826,2]
[399940607,1766908232130,-855.68627514,0.00014826,2]
[399940608,1766908232139,-855.68627514,0.00014826,2]
[399940609,1766908232149,-855.68627514,0.00014826,2]
[399940610,1766908232158,-849.45642248,0.00014826,2]
[399940611,1766908232168,-849.45642248,0.00014826,2]
[399940612,1766908232177,-849.45642248,0.00014826,2]
[399940613,1766908232189,-849.45642248,0.00014826,2]
[399940614,1766908232200,-849.45642248,0.00014826,2]
[399940615,1766908232210,-849.45642248,0.00014826,2]
[399940616,1766908232220,-849.45642248,0.00014826,2]
[399940617,1766908232229,-849.45642248,0.00014826,2]
[399940618,1766908232240,-849.45642248,0.00014826,2]
[399940619,1766908232255,-849.45642248,0.00014826,2]
[399940620,1766908232265,-849.45642248,0.00014826,2]
[399940621,1766908232275,-849.45642248,0.00014826,2]
[399940622,1766908232285,-849.45642248,0.00014826,2]
[399940623,1766908232294,-849.45642248,0.00014826,2]
[399940624,1766908232304,-849.45642248,0.00014826,2]
[399940625,1766908232314,-849.45642248,0.00014826,2]
[399940626,1766908232323,-849.45642248,0.00014826,2]
[399940627,1766908232333,-849.45642248,0.00014826,2]
[399940628,1766908232342,-849.45642248,0.00014826,2]
[399940629,1766908232352,-849.45642248,0.00014826,2]
[399940630,1766908232361,-849.45642248,0.00014826,2]
[399940631,1766908232371,-849.45642248,0.00014826,2]
[399940632,1766908232382,-849.45642248,0.00014826,2]
[399940633,1766908232392,-849.45642248,0.00014826,2]
[399940634,1766908232401,-849.45642248,0.00014826,2]
[399940635,1766908232411,-849.45642248,0.00014826,2]
[399940636,1766908232420,-1126.16,0.00014826,2]
[399940637,1766908232429,-500.0,0.00014826,2]
[399940638,1766908232439,-17692.75575663,0.00014827,2]
[399940639,1766908232453,-549.90444418,0.00014827,2]
[399940640,1766908232465,-8939.56820987,0.00014827,2]
[399940641,1766908232487,-307.74301892,0.00014827,2]
[399940642,1766908232498,-1115.5,0.00014827,2]
[399940643,1766908232513,-4393.67431488,0.00014827,2]
[399940644,1766908232524,-999.0,0.00014827,2]
[399940645,1766908237433,-185902.47425552,0.00014827,2]
[399940646,1766908237443,-3292.17707814,0.00014968,2]
[399940647,1766908237452,-500.0,0.00014973,2]
[399940648,1766908237462,-497.74933683,0.00014973,2]
[399940649,1766908237475,-500.0,0.00014973,2]
[399940650,1766908237485,-500.0,0.00014973,2]
[399940651,1766908237495,-1000.0,0.00014987,2]
[399940652,1766908237505,-157.12,0.00015039,2]
[399940653,1766908237516,-300.0,0.00015068,2]
[399940654,1766908237526,-195.0,0.00015068,2]
[399940655,1766908237536,-300.0,0.00015068,2]
[399940656,1766908237546,-600.0,0.00015068,2]
[399940657,1766908237555,-250.0,0.00015068,2]
[399940658,1766908237565,-195.0,0.00015068,2]
[399940659,1766908237574,-500.0,0.000151,2]
[399940660,1766908237583,-1126.16,0.000151,2]
[399940661,1766908237592,-1095.94030947,0.00015138,2]
[399940662,1766908237602,-353.49521228,0.00015138,2]
[399940663,1766908237613,-192.43582029,0.00015178,2]
[399940664,1766908237623,-268.21888193,0.00015187,2]
[399940665,1766908237633,-187.88767078,0.00015187,2]
[399940666,1766908237644,-539.47200208,0.00015187,2]
[399940667,1766908237654,-1000000.0,0.00015188,2]
[399940668,1766908237665,-3292.17707814,0.00015209,2]
[399940669,1766908237675,-200.0,0.00015238,2]
[399940670,1766908237685,-608.55,0.00015273,2]
[399940671,1766908237698,-593.73795752,0.00015287,2]
[399940672,1766908237707,-500.0,0.00015287,2]
[399940673,1766908237717,-500.0,0.00015287,2]
[399940674,1766908237728,-328.5132583,0.00015287,2]
[399940675,1766908237739,-500.0,0.00015287,2]
[399940676,1766908237750,-500.0,0.00015287,2]
[399940677,1766908237764,-500.0,0.00015287,2]
[399940678,1766908237774,-500.0,0.00015287,2]
[399940679,1766908237785,-500.0,0.00015287,2]
[399940680,1766908237795,-500.0,0.00015287,2]
[399940681,1766908237807,-500.0,0.00015287,2]
[399940682,1766908237816,-500.0,0.00015287,2]
[399940683,1766908237826,-500.0,0.00015287,2]
[399940684,1766908237838,-500.0,0.00015287,2]
[399940685,1766908237849,-164.210935,0.00015287,2]
[399940686,1766908237859,-500.0,0.00015287,2]
[399940687,1766908237868,-150.0,0.00015288,2]
[399940688,1766908237877,-334.38,0.00015313,2]
[399940689,1766908237887,-1095.94030942,0.00015334,2]
[399940690,1766908237899,-500.0,0.00015374,2]
[399940691,1766908237908,-1126.16,0.00015374,2]
[399940692,1766908237917,-1225.24,0.00015429,2]
[399940693,1766908237926,-200.0,0.00015438,2]
[399940694,1766908237936,-3292.17707814,0.00015451,2]
[399940695,1766908237945,-490.36250991,0.00015521,2]
[399940696,1766908237955,-921.98541227,0.00015521,2]
[399940697,1766908237964,-1000.0,0.00015521,2]
[399940698,1766908237974,-1095.94030942,0.0001553,2]
[399940699,1766908237983,-1852.42,0.00015587,2]
[399940700,1766908237994,-500.0,0.00015648,2]
[399940701,1766908238003,-1126.16,0.00015648,2]
[399940702,1766908238013,-1095.94030942,0.00015725,2]
[399940703,1766908238022,-334.38,0.00015727,2]
[399940704,1766908238032,-999.0,0.00015727,3]
[399940705,1766908238041,-500.0,0.00015789,2]
[399940706,1766908238063,-1095.94030942,0.00015921,2]
[399940707,1766908238073,-500.0,0.00015922,2]
[399940708,1766908238083,-1126.16,0.00015922,2]
[399940709,1766908238092,-500.0,0.00015999,2]
[399940710,1766908238102,-527.08053546,0.00015999,2]
[399940711,1766908238117,-500.0,0.00015999,2]
[399940712,1766908238127,-562.55426662,0.00015999,2]
[399940713,1766908238136,-196.92208224,0.00015999,2]
[399940714,1766908238146,-440.86242304,0.00015999,2]
[399940715,1766908238155,-166955.77056216,0.00016,2]
[399940716,1766908238165,-632.21693724,0.00016,2]
[399940717,1766908238175,-89822.4860815,0.00016,4]
[399940718,1766908238185,-154.86,0.00016039,2]
[399940719,1766908238195,-579.51075165,0.00016068,2]
[399940720,1766908238204,-1095.94030942,0.00016117,2]
[399940721,1766908238215,-1126.16,0.00016196,2]
[399940722,1766908238225,-500.0,0.00016199,2]
[399940723,1766908238235,-500.0,0.00016199,2]
[399940724,1766908238244,-420.0,0.00016218,2]
[399940725,1766908238254,-1680.0,0.00016297,2]
[399940726,1766908238264,-1095.94030942,0.00016313,2]
[399940727,1766908238274,-181.97,0.00016377,2]
[399940728,1766908238284,-212.0,0.00016416,2]
[399940729,1766908238294,-212.0,0.0001643,2]
[399940730,1766908238303,-212.0,0.0001643,2]
[399940731,1766908238315,-6425.88,0.00016438,2]
[399940732,1766908238324,-212.0,0.00016451,2]
[399940733,1766908238334,-1126.16,0.0001647,2]
[399940734,1766908238343,-212.0,0.00016507,2]
[399940735,1766908238353,-1095.94030942,0.00016508,2]
[399940736,1766908238363,-212.0,0.00016597,2]
[399940737,1766908238372,-212.0,0.00016615,2]
[399940738,1766908238382,-212.0,0.00016648,2]
[399940739,1766908238391,-1095.94030942,0.00016704,2]
[399940740,1766908238400,-1126.17,0.00016744,2]
[399940741,1766908238410,-212.0,0.00016754,2]
[399940742,1766908238420,-212.0,0.00016802,2]
[399940743,1766908238429,-1000.0,0.00016861,2]
[399940744,1766908238439,-172.16495324,0.000169,2]
[399940745,1766908238451,-314.90111822,0.000169,2]
[399940746,1766908238461,-1095.94030942,0.000169,2]
[399940747,1766908238470,-654.12142638,0.000169,2]
[399940748,1766908238480,-623.78580978,0.000169,2]
[399940749,1766908238489,-424.20807152,0.00016973,2]
[399940750,1766908238499,-500.0,0.00016973,2]
[399940751,1766908238508,-500.0,0.00016973,2]
[399940752,1766908238517,-500.0,0.00016973,2]
[399940753,1766908238527,-481.0497289,0.00016973,2]
[399940754,1766908238536,-500.0,0.00016973,2]
[399940755,1766908238545,-500.0,0.00016973,2]
[399940756,1766908238555,-4252.99,0.00016986,2]
[399940757,1766908238564,-602.50518509,0.00016999,2]
[399940758,1766908238573,-500.0,0.00016999,2]
[399940759,1766908238583,-500.0,0.00016999,2]
[399940760,1766908238592,-1269466.03109756,0.00017,2]
[399940761,1766908238606,-64191.80537403,0.00017,2]
[399940762,1766908238617,-12376.592878,0.00017,2]
[399940763,1766908238628,-1034.29654087,0.00017,2]
[399940766,1766908239712,-899386.24257982,0.00017,2]
[399940797,1766908245482,-1791.854808,0.00015692,2]
[399940811,1766908807424,4000.0,0.0001342,2]
[399940813,1766908869465,402909.79465963,4.883e-05,120]
[399940821,1766909065028,999.0,0.00013993,3]
[399940822,1766909065148,312.1,6.997e-05,2]
[399940823,1766909065340,312.1,7.365e-05,2]
[399940824,1766909065545,312.1,7.733e-05,2]
[399940825,1766909065740,312.1,8.101e-05,2]
[399940826,1766909065965,312.1,8.47e-05,2]
[399940827,1766909066160,312.1,8.838e-05,2]
[399940828,1766909066352,312.1,9.206e-05,2]
[399940829,1766909066546,312.1,9.574e-05,2]
[399940830,1766909066729,312.1,9.943e-05,2]
[399940831,1766909066927,312.1,0.00010311,2]
[399940832,1766909067124,312.1,0.00010679,2]
[399940833,1766909067317,312.1,0.00011047,2]
[399940834,1766909067525,312.1,0.00011415,2]
[399940835,1766909067729,312.1,0.00011784,2]
[399940836,1766909067919,312.1,0.00012152,2]
[399940837,1766909068119,312.1,0.0001252,2]
[399940838,1766909068485,312.1,0.00012888,2]
[399940839,1766909068594,312.1,0.00013257,2]
[399940958,1766909437563,-312.1,0.00013625,2]
[399940959,1766909437573,-195.0,0.000137,2]
[399940960,1766909437583,-200.0,0.00013776,2]
[399940961,1766909437594,-150.0,0.00013918,2]
[399940962,1766909437605,-1852.42,0.0001393,2]
[399940963,1766909437615,-312.1,0.00013993,2]
[399940964,1766909437626,-166.66,0.00014385,2]
[399940965,1766909437635,-1200.0,0.00014499,2]
[399940966,1766909437645,-6000.0,0.000145,2]
[399940967,1766909437654,-300.0,0.00014516,2]
[399940968,1766909437664,-300.0,0.00014516,2]
[399940969,1766909437673,-353.49521228,0.00014517,2]
[399940970,1766909437683,-202.91839635,0.00014517,2]
[399940971,1766909437693,-191.0,0.00014598,2]
[399940972,1766909437702,-5007.0,0.000146,2]
[399940973,1766909437712,-150.0,0.00014605,2]
[399940974,1766909437722,-500.0,0.00014605,2]
[399940975,1766909437732,-268.21888193,0.00014606,2]
[399940976,1766909437742,-187.88767078,0.00014606,2]
[399940978,1766909437751,-539.47200208,0.00014606,2]
[399940980,1766909437760,-500.0,0.00014606,2]
[399940982,1766909437771,-443.82433886,0.00014606,2]
[399940984,1766909437780,-157.64100285,0.00014606,2]